bitfinex-derivatives/quotes_SOLF0:USTF0_20241230
["timestamp","ask_amount","ask_price","bid_price","bid_amount"]
[1735540167624,2.5953,193.06,193.02,2.5957]
[1735540167822,2.5953,193.06,193.03,8.42060508]
[1735540168015,2.5953,193.06,193.04,4.47618342]
[1735540168216,2.5953,193.06,193.02,2.5957]
[1735540168417,2.5953,193.06,193.03,4.47738489]
[1735540168712,2.5957,193.03,192.98,3.12]
[1735540168912,10.83787634,193.03,192.98,3.12]
[1735540169312,10.83787634,193.03,192.98,5.7162]
[1735540170924,8.24217634,193.03,192.99,2.5961]
[1735540171117,2.5955,193.04,192.99,2.5961]
[1735540171723,2.5955,193.04,192.98,3.12]
[1735540171919,2.5953,193.06,192.99,12.71959939]
[1735540172224,2.5953,193.06,193.0,4.47742305]
[1735540172425,2.5953,193.06,192.99,8.24217634]
[1735540172614,2.5953,193.06,193.0,4.47619486]
[1735540172818,2.5953,193.06,192.99,8.24217634]
[1735540173022,2.5953,193.06,193.0,8.4203593]
[1735540173325,2.5953,193.06,193.01,4.47608292]
[1735540173519,2.5953,193.06,192.99,8.24217634]
[1735540173817,2.5953,193.06,193.0,8.41983016]
[1735540174016,2.5953,193.06,192.99,8.24217634]
[1735540174220,2.5953,193.06,192.98,3.12]
[1735540174221,1.534,193.09,193.03,8.24217634]
[1735540174516,9.77617634,193.09,193.03,11.36217634]
[1735540175422,2.595,193.08,193.04,2.5954]
[1735540176116,9.77617634,193.09,193.05,2.5954]
[1735540178023,12.37107634,193.09,193.05,2.5954]
[1735540180440,12.37107634,193.09,193.06,4.47833464]
[1735540180618,12.37107634,193.09,193.05,2.5954]
[1735540180818,12.37107634,193.09,193.06,4.47831214]
[1735540181025,8.24217634,193.11,193.05,8.24217634]
[1735540181226,8.24217634,193.13,193.06,8.42415376]
[1735540181424,1.4838,193.16,193.07,16.6663301]
[1735540181624,8.24217634,193.13,193.08,11.50415242]
[1735540181825,8.24217634,193.13,193.08,3.08]
[1735540182119,9.72597634,193.16,193.09,16.66549875]
[1735540182323,9.72597634,193.16,193.1,8.42324648]
[1735540182528,12.31987634,193.16,193.12,2.5944]
[1735540182929,9.72597634,193.16,193.09,8.24217634]
[1735540183130,9.72597634,193.16,193.1,4.47643111]
[1735540183423,9.72597634,193.16,193.11,4.47701805]
[1735540183629,9.72597634,193.16,193.09,8.24217634]
[1735540183830,9.72597634,193.16,193.1,4.47625663]
[1735540184128,9.72597634,193.16,193.11,4.47625663]
[1735540184321,9.72597634,193.16,193.09,8.24217634]
[1735540184526,2.5941,193.15,193.11,2.5945]
[1735540186132,2.5942,193.14,193.1,2.5947]
[1735540187124,10.83637634,193.14,193.1,2.5947]
[1735540187540,10.83637634,193.14,193.11,4.47547364]
[1735540187725,10.83637634,193.14,193.1,2.5947]
[1735540188126,8.24217634,193.14,193.09,8.24217634]
[1735540188323,8.24217634,193.12,193.07,3.08]
[1735540188527,8.24217634,193.1,193.08,4.47729436]
[1735540188728,8.24217634,193.1,193.06,3.08]
[1735540188929,8.24217634,193.08,193.05,3.08]
[1735540189930,2.5952,193.07,193.05,3.08]
[1735540190325,2.5953,193.06,193.05,3.08]
[1735540190833,8.24217634,193.07,193.05,3.08]
[1735540192230,2.5951,193.07,193.05,3.08]
[1735540192534,2.5951,193.07,193.03,2.5955]
[1735540192724,2.5951,193.07,193.04,4.48022623]
[1735540192927,2.5951,193.07,193.03,5.6755]
[1735540193331,2.5951,193.07,193.04,4.48090778]
[1735540193633,2.5951,193.07,193.05,4.48044442]
[1735540193936,2.5951,193.07,193.03,5.6755]
[1735540194235,2.5951,193.07,193.04,8.4287877]
[1735540194436,2.5951,193.07,193.05,4.48088255]
[1735540194638,2.5951,193.07,193.03,5.6755]
[1735540194831,2.595,193.08,193.04,11.02445088]
[1735540195032,2.595,193.08,193.05,4.48036246]
[1735540195228,8.24217634,193.09,193.03,11.32217634]
[1735540195429,8.24217634,193.11,193.05,8.24217634]
[1735540195937,8.24217634,193.11,193.06,4.48071693]
[1735540196238,8.24217634,193.11,193.05,8.24217634]
[1735540196437,2.5948,193.1,193.07,2.5951]
[1735540196630,2.5948,193.1,193.05,8.24217634]
[1735540196835,2.5948,193.1,193.06,4.48088501]
[1735540197034,2.5948,193.1,193.05,8.24217634]
[1735540197238,2.5948,193.1,193.06,4.48071724]
[1735540197439,2.5948,193.1,193.06,2.5952]
[1735540199441,2.595,193.09,193.05,8.24217634]
[1735540199643,2.595,193.09,193.03,11.32217634]
[1735540199843,2.595,193.09,193.04,8.42837245]
[1735540200040,2.595,193.09,193.05,4.48031145]
[1735540200240,2.595,193.09,193.05,2.5953]
[1735540200434,2.595,193.09,193.06,4.48007805]
[1735540200641,2.595,193.09,193.05,2.5953]
[1735540200841,2.595,193.09,193.06,4.47990252]
[1735540201043,2.595,193.09,193.05,2.5953]
[1735540201342,2.595,193.09,193.06,4.47999641]
[1735540201545,2.595,193.09,193.05,2.5953]
[1735540201741,8.24217634,193.11,193.06,4.47986429]
[1735540201944,2.595,193.08,193.05,2.5953]
[1735540202241,2.595,193.08,193.06,4.47994835]
[1735540202437,2.595,193.08,193.04,2.5954]
[1735540202640,8.24217634,193.07,193.05,4.48012813]
[1735540202839,3.08,193.13,193.0,3.08]
[1735540203043,2.5956,193.04,193.01,8.43412492]
[1735540203243,8.24217634,193.05,193.0,3.08]
[1735540203444,3.08,193.13,193.0,3.08]
[1735540203743,10.83767634,193.05,193.01,4.48321541]
[1735540204042,10.83767634,193.05,193.0,5.676]
[1735540204241,2.5956,193.04,193.01,4.48212559]
[1735540204442,2.5956,193.04,193.0,5.676]
[1735540204643,2.5956,193.04,193.01,8.43132128]
[1735540204945,2.5956,193.04,193.0,5.676]
[1735540205146,2.5954,193.05,193.01,19.27073756]
[1735540205446,2.5954,193.05,193.02,4.48260653]
[1735540205643,2.5954,193.05,193.01,10.83807634]
[1735540205943,2.5954,193.05,193.02,4.48303758]
[1735540206143,2.5954,193.05,193.01,10.83807634]
[1735540206339,2.5955,193.04,193.02,4.4830902]
[1735540206536,2.5955,193.04,193.01,8.24217634]
[1735540206737,2.5955,193.04,193.02,4.48346905]
[1735540206940,8.24217634,193.09,193.03,4.48199922]
[1735540207143,8.24217634,193.09,193.01,8.24217634]
[1735540207449,2.5951,193.08,193.04,2.5955]
[1735540207946,2.5951,193.08,193.05,4.48120252]
[1735540208135,2.5951,193.08,193.04,2.5955]
[1735540208340,2.5951,193.08,193.05,4.48050498]
[1735540208546,2.5951,193.08,193.04,2.5955]
[1735540208743,2.5951,193.08,193.05,4.48032105]
[1735540208938,8.24217634,193.09,193.01,8.24217634]
[1735540209142,2.5952,193.07,193.02,11.02437419]
[1735540209345,2.5952,193.07,193.03,8.42867419]
[1735540209544,2.5952,193.07,193.04,4.48047948]
[1735540209745,2.5952,193.07,193.03,2.5957]
[1735540209945,8.24217634,193.06,193.0,3.08]
[1735540210151,8.24217634,193.04,193.01,8.43307436]
[1735540210343,8.24217634,193.04,193.0,3.08]
[1735540210549,2.5958,193.02,193.0,3.08]
[1735540210746,8.24217634,193.04,193.01,4.48349047]
[1735540210942,10.83747634,193.06,193.02,2.5958]
[1735540211345,2.5953,193.06,193.03,4.48191147]
[1735540211547,2.5951,193.07,193.01,8.24217634]
[1735540211850,2.5951,193.07,193.02,8.43121595]
[1735540212049,2.5951,193.07,193.03,4.4818458]
[1735540212248,2.5953,193.06,193.01,10.83797634]
[1735540212449,8.24217634,193.08,193.02,8.43030955]
[1735540212652,8.24217634,193.08,193.01,8.24217634]
[1735540212843,8.24217634,193.06,193.02,8.42939607]
[1735540213045,8.24217634,193.04,193.0,3.06]
[1735540213254,8.24217634,193.04,193.01,8.43127247]
[1735540213544,2.5957,193.03,192.99,3.06]
[1735540213852,2.5957,193.03,193.0,8.43131451]
[1735540214048,2.5957,193.03,193.01,4.48191336]
[1735540214254,2.5957,193.03,192.99,5.6562]
[1735540214445,2.5957,193.03,193.0,8.43111914]
[1735540214750,2.5957,193.03,192.99,5.6562]
[1735540214751,2.5958,193.02,193.01,4.4818075]
[1735540215054,8.24217634,193.04,192.98,3.06]
[1735540215246,8.24217634,193.04,192.99,8.43292101]
[1735540215451,8.24217634,193.04,193.0,4.48277405]
[1735540215642,8.24217634,193.04,192.98,3.06]
[1735540215843,2.596,193.01,192.99,8.43396361]
[1735540216040,2.596,193.01,193.0,4.4833275]
[1735540216443,2.596,193.01,192.98,3.06]
[1735540216650,2.596,193.01,192.99,8.42992087]
[1735540216845,2.5963,192.99,192.97,3.06]
[1735540217042,8.24217634,193.02,192.97,3.06]
[1735540217448,2.5963,192.99,192.97,3.06]
[1735540218862,2.5963,192.99,192.95,8.24217634]
[1735540219064,2.5963,192.99,192.96,4.48217096]
[1735540219247,2.5963,192.98,192.95,8.24217634]
[1735540219452,2.5963,192.98,192.96,4.48257662]
[1735540219652,2.5963,192.98,192.94,2.5967]
[1735540219950,2.5965,192.97,192.93,11.30217634]
[1735540220146,2.5965,192.97,192.94,4.48410275]
[1735540220346,2.5968,192.95,192.92,5.45688]
[1735540220557,2.5968,192.95,192.93,4.48325704]
[1735540220754,2.5968,192.95,192.92,5.45688]
[1735540221056,2.5968,192.95,192.93,4.48340107]
[1735540221256,2.597,192.94,192.92,3.06]
[1735540221555,8.24217634,192.96,192.92,3.06]
[1735540221756,8.24217634,192.96,192.93,4.4813526]
[1735540221961,3.06,193.06,192.92,3.06]
[1735540221962,8.24217634,192.98,192.92,3.06]
[1735540222150,8.24217634,192.98,192.93,4.48115788]
[1735540222355,8.24217634,192.98,192.92,3.06]
[1735540222656,2.5966,192.97,192.92,5.657]
[1735540222860,8.24217634,192.98,192.92,3.06]
[1735540223560,8.24217634,192.96,192.92,3.06]
[1735540223758,2.5968,192.95,192.92,3.06]
[1735540223960,8.24217634,192.96,192.92,3.06]
[1735540225463,2.5967,192.95,192.92,3.06]
[1735540225859,2.5967,192.95,192.91,2.5973]
[1735540226157,2.5967,192.95,192.91,5.6573]
[1735540226357,2.5968,192.94,192.91,3.06]
[1735540227153,2.5967,192.95,192.91,3.06]
[1735540227359,2.5967,192.95,192.91,5.6572]
[1735540227560,8.24217634,192.99,192.93,8.24217634]
[1735540227959,10.83847634,192.99,192.94,2.5967]
[1735540229767,8.24217634,192.99,192.94,2.5967]
[1735540229967,2.5963,192.98,192.94,2.5967]
[1735540232773,2.5963,192.98,192.93,8.24217634]
[1735540232965,2.5961,193.0,192.96,2.5965]
[1735540233165,8.24217634,193.01,192.93,8.24217634]
[1735540233364,8.24217634,193.01,192.95,8.24217634]
[1735540233665,8.24217634,193.05,192.97,8.24217634]
[1735540233861,8.24217634,193.05,192.99,8.24217634]
[1735540234371,10.83757634,193.05,193.01,2.5959]
[1735540237275,2.5954,193.05,193.01,2.5959]
[1735540237673,9.80727634,193.09,193.03,8.24217634]
[1735540237867,1.5651,193.09,193.03,8.24217634]
[1735540238072,3.0885,193.1,193.03,8.24217634]
[1735540238279,3.0885,193.1,193.05,8.24217634]
[1735540238872,5.6833,193.1,193.05,10.83737634]
[1735540240377,5.6833,193.1,193.05,2.5952]
[1735540240975,2.5948,193.09,193.05,2.5952]
[1735540241682,3.0885,193.1,193.03,8.24217634]
[1735540241979,8.24217634,193.07,193.01,8.24217634]
[1735540242177,8.24217634,193.07,193.02,7.54237169]
[1735540242479,10.83727634,193.07,193.02,5.6557]
[1735540242776,10.83727634,193.07,193.02,3.06]
[1735540243481,10.83727634,193.07,193.03,2.5956]
[1735540243680,10.83717634,193.09,193.03,8.24217634]
[1735540243878,10.83717634,193.09,193.04,4.48245606]
[1735540244083,10.83717634,193.09,193.03,8.24217634]
[1735540244286,10.83717634,193.09,193.04,4.48193757]
[1735540244581,10.83717634,193.09,193.03,8.24217634]
[1735540244582,10.83717634,193.09,193.05,2.5954]
[1735540247378,8.24217634,193.09,193.05,2.5954]
[1735540248583,4.4182,193.15,193.03,8.24217634]
[1735540248777,9.71197634,193.15,193.09,8.24217634]
[1735540248983,8.24217634,193.15,193.09,11.30217634]
[1735540249189,2.5944,193.13,193.09,5.6548]
[1735540255198,10.83657634,193.13,193.09,5.6548]
[1735540257199,2.5941,193.15,193.09,3.06]
[1735540257499,2.5941,193.15,193.09,11.30217634]
[1735540257994,2.5939,193.16,193.12,2.5943]
[1735540258195,8.24217634,193.18,193.11,8.24217634]
[1735540258997,9.71197634,193.19,193.11,8.24217634]
[1735540259501,2.5937,193.18,193.14,2.5941]
[1735540259793,2.5937,193.18,193.14,3.06]
[1735540260200,9.71197634,193.19,193.14,3.06]
[1735540260500,2.594,193.15,193.14,3.06]
[1735540260698,8.24217634,193.17,193.14,3.06]
[1735540260893,10.83607634,193.17,193.14,3.06]
[1735540261593,2.594,193.15,193.14,3.06]
[1735540265297,8.24217634,193.17,193.14,3.06]
[1735540265494,10.83607634,193.17,193.14,3.06]
[1735540265699,8.24217634,193.19,193.14,3.06]
[1735540267909,2.5939,193.16,193.14,3.06]
[1735540268809,8.24217634,193.17,193.14,3.06]
[1735540269006,2.5938,193.17,193.14,3.06]
[1735540269410,8.24217634,193.19,193.14,3.06]
[1735540269609,2.5939,193.16,193.14,3.06]
[1735540270016,2.5938,193.17,193.14,3.06]
[1735540270914,2.5937,193.18,193.14,5.6541]
[1735540271220,11.21947634,193.23,193.17,8.24217634]
[1735540272409,2.5932,193.22,193.18,2.5936]
[1735540272606,1.5654,193.24,193.19,3.06]
[1735540272811,2.5928,193.25,193.2,2.5933]
[1735540273012,2.5928,193.25,193.19,11.30217634]
[1735540273411,8.24217634,193.27,193.19,11.30217634]
[1735540273616,2.5926,193.26,193.21,2.5932]
[1735540274013,8.24217634,193.27,193.21,2.5932]
[1735540274212,2.5927,193.25,193.2,2.5933]
[1735540275014,2.5931,193.22,193.19,3.06]
[1735540275215,8.24217634,193.2,193.15,3.06]
[1735540275513,8.24217634,193.2,193.14,3.06]
[1735540276319,2.5938,193.17,193.14,3.06]
[1735540277521,2.5938,193.17,193.12,2.5944]
[1735540277818,8.24217634,193.18,193.13,3.06]
[1735540278016,2.5939,193.16,193.13,3.06]
[1735540278421,2.5939,193.16,193.13,11.30217634]
[1735540278721,2.5936,193.18,193.13,13.89637634]
[1735540278915,8.24217634,193.2,193.13,11.30217634]
[1735540279218,10.83567634,193.2,193.15,2.594]
[1735540279418,2.5935,193.2,193.15,2.594]
[1735540279614,2.5935,193.2,193.13,11.30217634]
[1735540279913,2.5931,193.22,193.15,8.24217634]
[1735540280117,8.24217634,193.23,193.15,8.24217634]
[1735540280518,8.24217634,193.23,193.13,3.06]
[1735540280519,2.5932,193.21,193.17,8.24217634]
[1735540280819,2.5932,193.21,193.18,3.06]
[1735540281020,2.5934,193.2,193.18,3.06]
[1735540282118,8.24217634,193.21,193.18,3.06]
[1735540282316,8.24217634,193.19,193.14,3.06]
[1735540283215,2.5939,193.17,193.14,3.06]
[1735540285215,8.24217634,193.23,193.16,8.24217634]
[1735540285621,2.5932,193.22,193.17,2.5936]
[1735540285821,8.24217634,193.23,193.17,2.5936]
[1735540286327,8.24217634,193.23,193.18,7.07037445]
[1735540286513,8.24217634,193.21,193.16,8.24217634]
[1735540287115,8.24217634,193.21,193.14,11.30217634]
[1735540287414,8.24217634,193.19,193.14,3.06]
[1735540287820,2.594,193.16,193.14,3.06]
[1735540288024,2.594,193.16,193.1,4.5112]
[1735540288025,8.24217634,193.15,193.1,3.06]
[1735540288214,2.5944,193.12,193.11,8.43172656]
[1735540288417,2.5944,193.12,193.11,4.482028]
[1735540289115,2.5944,193.12,193.08,3.06]
[1735540289320,2.5944,193.12,193.11,4.48447017]
[1735540289925,2.5943,193.13,193.11,4.48447017]
[1735540290120,2.5943,193.13,193.09,8.24217634]
[1735540290321,2.5943,193.13,193.1,8.43707718]
[1735540290521,2.5943,193.13,193.08,3.06]
[1735540290720,2.5943,193.13,193.09,8.43956967]
[1735540290921,2.5942,193.14,193.1,11.03403568]
[1735540291221,2.5942,193.14,193.1,2.5947]
[1735540291524,2.594,193.15,193.11,7.08186826]
[1735540291725,2.594,193.15,193.11,2.5945]
[1735540292931,4.4941,193.19,193.12,4.48827152]
[1735540293226,4.4941,193.19,193.13,7.54827152]
[1735540293421,4.4941,193.19,193.13,3.06]
[1735540293617,4.4941,193.19,193.14,4.48908942]
[1735540293618,2.5938,193.17,193.14,4.48908942]
[1735540293817,4.4941,193.19,193.15,4.48824604]
[1735540294016,4.4941,193.19,193.13,3.06]
[1735540294219,1.5082,193.19,193.14,8.44368179]
[1735540294421,1.5082,193.19,193.13,3.06]
[1735540295021,2.5941,193.15,193.13,3.06]
[1735540295522,2.5941,193.15,193.14,4.49012683]
[1735540296228,2.5941,193.15,193.13,3.06]
[1735540296823,2.5941,193.15,193.14,4.4910278]
[1735540297926,2.5941,193.15,193.13,3.06]
[1735540298125,1.5082,193.19,193.06,19.9492237]
[1735540298327,12.89936973,193.18,193.07,7.55341152]
[1735540298531,12.89936973,193.15,193.08,8.45330925]
[1735540298732,2.5943,193.14,193.09,8.45330925]
[1735540298935,12.89936973,193.15,193.1,8.45330925]
[1735540299226,12.89936973,193.15,193.07,3.06]
[1735540299431,2.5947,193.11,193.08,8.45735394]
[1735540299628,2.5947,193.11,193.09,8.45735394]
[1735540299930,2.5947,193.11,193.1,4.49569275]
[1735540301029,2.5947,193.11,193.07,5.655]
[1735540301230,2.5947,193.11,193.08,8.4578873]
[1735540301528,2.5947,193.11,193.09,8.4578873]
[1735540301729,2.5947,193.11,193.1,4.49597814]
[1735540302326,2.5947,193.11,193.07,5.655]
[1735540302526,2.5947,193.11,193.08,8.45821609]
[1735540302730,2.5947,193.11,193.09,8.45821609]
[1735540302934,1.5082,193.19,193.1,4.49606426]
[1735540303227,12.89936973,193.22,193.11,8.45668327]
[1735540303433,4.6296,193.25,193.15,2.5939]
[1735540303627,4.6296,193.25,193.15,12.89936973]
[1735540303834,86.68917293,193.33,193.16,8.44952313]
[1735540304130,12.89936973,193.29,193.18,12.89936973]
[1735540304327,12.89936973,193.29,193.19,8.44734117]
[1735540304533,12.89936973,193.29,193.2,4.48912192]
[1735540304733,12.89936973,193.29,193.18,12.89936973]
[1735540305033,12.89936973,193.29,193.19,8.44221177]
[1735540305229,2.5929,193.24,193.2,4.4875495]
[1735540305436,12.89936973,193.29,193.17,3.06]
[1735540305732,12.89936973,193.29,193.18,8.44105542]
[1735540305933,12.89936973,193.26,193.19,4.48693625]
[1735540306128,12.89936973,193.26,193.17,3.06]
[1735540306330,12.89936973,193.23,193.17,3.06]
[1735540307030,12.89936973,193.23,193.14,3.06]
[1735540307228,3.1421,193.22,193.15,4.48981322]
[1735540307423,4.6723,193.22,193.14,3.06]
[1735540307631,4.6723,193.22,193.15,4.49031885]
[1735540307830,2.5939,193.17,193.14,3.06]
[1735540308132,4.6723,193.22,193.14,3.06]
[1735540309133,2.5938,193.17,193.14,3.06]
[1735540310338,2.5935,193.19,193.14,3.06]
[1735540310535,2.5935,193.19,193.15,4.49115539]
[1735540310740,2.5935,193.19,193.14,3.06]
[1735540310940,2.5935,193.19,193.15,4.49193225]
[1735540311137,2.5935,193.19,193.16,4.49193225]
[1735540311337,2.5935,193.19,193.14,3.06]
[1735540311637,2.5935,193.19,193.15,8.4563972]
[1735540311839,2.5935,193.19,193.16,4.49512402]
[1735540312040,2.5935,193.19,193.14,3.06]
[1735540312241,2.5935,193.19,193.15,8.45891178]
[1735540312440,2.5935,193.19,193.14,3.06]
[1735540312441,2.5935,193.19,193.16,4.49646177]
[1735540312641,2.5935,193.19,193.14,5.654]
[1735540312842,2.5935,193.19,193.15,8.46087025]
[1735540313042,2.5935,193.19,193.16,4.4975032]
[1735540313237,12.89936973,193.26,193.17,8.45928053]
[1735540313445,2.5934,193.2,193.18,4.49721059]
[1735540313638,12.89936973,193.26,193.15,2.594]
[1735540313841,12.89936973,193.26,193.16,8.45683184]
[1735540314050,12.89936973,193.26,193.17,8.45683184]
[1735540314254,12.89936973,193.26,193.18,4.49534323]
[1735540314546,2.593,193.23,193.15,2.594]
[1735540314749,12.89936973,193.26,193.16,11.04981536]
[1735540314950,12.89936973,193.26,193.17,8.45591536]
[1735540315151,12.89936973,193.26,193.18,4.49482219]
[1735540315353,4.5792,193.27,193.19,4.49523087]
[1735540315554,12.89936973,193.29,193.19,3.06]
[1735540315745,2.5927,193.26,193.2,7.0867735]
[1735540315946,12.89936973,193.32,193.21,8.45265511]
[1735540316151,12.89936973,193.32,193.22,8.44978163]
[1735540316346,2.5923,193.29,193.24,2.5928]
[1735540316545,12.89936973,193.32,193.24,3.06]
[1735540316955,2.5924,193.28,193.24,3.06]
[1735540317147,12.89936973,193.32,193.24,3.06]
[1735540317550,2.5925,193.27,193.24,3.06]
[1735540317750,12.89936973,193.32,193.24,3.06]
[1735540318152,2.5927,193.25,193.24,3.06]
[1735540320361,12.89936973,193.26,193.19,3.06]
[1735540320853,2.5933,193.21,193.19,3.06]
[1735540321057,12.89936973,193.26,193.19,3.06]
[1735540321554,2.5928,193.24,193.19,3.06]
[1735540321755,12.89936973,193.26,193.19,3.06]
[1735540321960,12.89936973,193.29,193.2,4.48428848]
[1735540322259,12.89936973,193.32,193.21,8.43480975]
[1735540322557,12.89936973,193.32,193.22,8.43480975]
[1735540322761,2.5923,193.28,193.24,2.5928]
[1735540323060,38.75037605,193.35,193.25,3.06]
[1735540323359,2.5919,193.31,193.26,2.5925]
[1735540324363,2.5917,193.33,193.28,2.5922]
[1735540324652,15.89796973,193.39,193.28,2.5922]
[1735540324854,2.5921,193.3,193.26,12.89936973]
[1735540325458,2.5916,193.33,193.28,2.5922]
[1735540325657,12.89936973,193.36,193.26,12.89936973]
[1735540325958,2.5919,193.31,193.27,2.5923]
[1735540326152,12.89936973,193.36,193.24,3.0326]
[1735540326355,12.89936973,193.36,193.25,3.06]
[1735540327159,12.89936973,193.36,193.26,2.5925]
[1735540327956,12.89936973,193.36,193.25,3.06]
[1735540328161,2.5922,193.29,193.25,5.6526]
[1735540328764,2.5922,193.29,193.26,3.06]
[1735540329562,12.89936973,193.36,193.26,3.06]
[1735540331458,2.592,193.3,193.26,3.06]
[1735540331862,12.89936973,193.36,193.26,3.06]
[1735540332463,2.5917,193.32,193.26,3.06]
[1735540332659,12.89936973,193.36,193.26,3.06]
[1735540333065,12.89936973,193.36,193.27,2.5924]
[1735540333267,12.89936973,193.36,193.26,3.06]
[1735540333965,2.5917,193.33,193.28,2.5922]
[1735540334366,12.89936973,193.36,193.28,2.5922]
[1735540334564,2.5918,193.32,193.27,2.5924]
[1735540335955,2.5919,193.31,193.27,2.5924]
[1735540338069,2.5922,193.29,193.26,3.06]
[1735540338465,2.5922,193.29,193.25,5.6926]
[1735540338668,12.89936973,193.33,193.25,3.1]
[1735540339967,2.5922,193.29,193.25,5.6927]
[1735540343964,12.89936973,193.33,193.25,3.1]
[1735540344163,12.89936973,193.36,193.25,3.1]
[1735540345870,12.89936973,193.36,193.27,2.5923]
[1735540346065,12.89936973,193.36,193.25,3.1]
[1735540348567,2.592,193.31,193.27,2.5924]
[1735540348974,2.5921,193.3,193.25,5.6926]
[1735540349168,2.5921,193.3,193.25,3.1]
[1735540350274,2.5921,193.3,193.26,10.83288937]
[1735540351070,2.5919,193.31,193.26,8.24048937]
[1735540351272,2.5919,193.31,193.28,8.24048937]
[1735540351470,2.9986,193.39,193.3,8.24048937]
[1735540351772,11.23908937,193.39,193.32,8.24048937]
[1735540351975,11.23908937,193.39,193.32,11.34048937]
[1735540352169,8.24048937,193.35,193.32,3.1]
[1735540352374,12.87366319,193.38,193.32,3.1]
[1735540353474,2.5916,193.33,193.32,3.1]
[1735540354276,2.5914,193.35,193.32,3.1]
[1735540354578,12.87366319,193.38,193.32,3.1]
[1735540354979,2.5916,193.33,193.32,3.1]
[1735540355479,2.592,193.31,193.28,3.1]
[1735540356875,12.87366319,193.38,193.28,3.1]
[1735540357279,12.87366319,193.38,193.28,5.6923]
[1735540357679,2.5915,193.35,193.3,2.5919]
[1735540357879,12.87366319,193.38,193.28,3.1]
[1735540358075,12.87366319,193.38,193.29,4.4795658]
[1735540358376,12.87366319,193.38,193.28,3.1]
[1735540358581,12.87366319,193.38,193.29,4.4811603]
[1735540358780,12.87366319,193.38,193.29,2.5921]
[1735540359090,12.87366319,193.38,193.3,8.42822594]
[1735540359377,12.87366319,193.38,193.31,4.48030067]
[1735540359582,2.5912,193.36,193.32,7.07115442]
[1735540359783,2.5912,193.36,193.33,3.1]
[1735540361079,2.591,193.38,193.34,2.5915]
[1735540361380,12.87366319,193.44,193.35,4.47968568]
[1735540361585,12.87366319,193.44,193.33,3.1]
[1735540361785,2.5907,193.4,193.36,2.5911]
[1735540362376,2.5905,193.42,193.37,7.06728287]
[1735540362685,2.5905,193.42,193.34,12.87366319]
[1735540362881,2.5905,193.42,193.35,8.41611411]
[1735540363183,2.5905,193.42,193.37,2.591]
[1735540365383,2.5905,193.42,193.38,2.5909]
[1735540365589,2.5905,193.42,193.38,5.6709]
[1735540366289,2.5905,193.42,193.38,3.08]
[1735540367088,2.5906,193.41,193.38,3.08]
[1735540370690,2.5909,193.39,193.35,2.5913]
[1735540370890,12.87366319,193.44,193.35,3.08]
[1735540371590,4.8163,193.47,193.35,3.08]
[1735540371781,12.87366319,193.43,193.35,3.08]
[1735540372386,8.2344297,193.4,193.35,3.08]
[1735540372686,8.2344297,193.38,193.31,2.5919]
[1735540372885,8.2344297,193.36,193.31,3.08]
[1735540373082,8.2344297,193.36,193.3,8.2344297]
[1735540373287,2.5918,193.32,193.3,3.08]
[1735540373687,8.2344297,193.34,193.3,3.08]
[1735540373892,2.5916,193.33,193.3,3.08]
[1735540376197,8.2344297,193.35,193.3,3.08]
[1735540376797,2.5919,193.31,193.3,3.08]
[1735540377393,2.5919,193.31,193.26,8.2344297]
[1735540377394,2.5918,193.32,193.28,3.08]
[1735540378192,2.5918,193.32,193.28,8.2344297]
[1735540378395,2.5918,193.32,193.29,3.08]
[1735540378592,8.2344297,193.35,193.29,3.08]
[1735540378989,2.5918,193.32,193.29,3.08]
[1735540379493,8.2344297,193.35,193.29,3.08]
[1735540379696,2.5919,193.31,193.29,3.08]
[1735540379896,8.2344297,193.31,193.22,2.39309902]
[1735540380097,8.2344297,193.31,193.23,11.49302788]
[1735540380297,8.2344297,193.31,193.24,8.41302788]
[1735540380498,8.2344297,193.31,193.25,4.47204628]